bitfinex/quotes_ETHUSD_20251019
["timestamp","ask_amount","ask_price","bid_price","bid_amount"]
[1760882547684,13.13296902,3966.2,3966.1,1.47373789]
[1760882547685,2.724,3966.2,3966.1,1.47373789]
[1760882547883,2.725,3966.5,3966.1,1.47373789]
[1760882548063,2.725,3966.7,3966.2,0.4404]
[1760882548265,2.725,3966.7,3966.1,1.03333789]
[1760882548665,0.21,3967.3,3966.2,0.4404]
[1760882548865,0.2485,3968.0,3966.2,0.4404]
[1760882548866,1.931,3967.2,3966.3,2.52124145]
[1760882549066,5.735519,3967.0,3966.2,0.4404]
[1760882549268,4.425036,3967.0,3966.2,0.4404]
[1760882549599,0.21,3967.7,3966.2,0.4404]
[1760882549801,0.21,3967.7,3967.6,0.2165]
[1760882550012,3.18167491,3969.8,3967.6,0.6569]
[1760882550013,2.51997076,3968.3,3967.6,0.6569]
[1760882550216,3.277574,3968.1,3967.6,0.6569]
[1760882550503,2.115626,3968.1,3967.6,0.6569]
[1760882550720,2.412799,3968.0,3967.6,3.17731137]
[1760882550883,0.548,3968.2,3967.6,3.17731137]
[1760882551065,2.046235,3968.1,3967.6,0.6569]
[1760882551267,0.548,3968.2,3967.6,0.2165]
[1760882551468,0.548,3968.2,3967.7,2.52035184]
[1760882551667,0.548,3968.2,3967.8,2.52027542]
[1760882551905,0.548,3968.2,3967.9,0.4404]
[1760882552088,0.21,3968.5,3967.6,0.2165]
[1760882552089,0.21,3968.5,3968.0,0.4404]
[1760882552397,3.19498,3969.2,3968.4,2.51989752]
[1760882552565,0.21,3969.2,3968.2,2.52003427]
[1760882552770,3.71954,3969.1,3968.6,2.51977186]
[1760882552971,3.71954,3969.1,3968.6,2.96017186]
[1760882553172,2.828853,3969.1,3968.3,2.5199102]
[1760882553387,2.828853,3969.1,3968.1,2.52009777]
[1760882553715,2.575349,3969.1,3968.3,0.4404]
[1760882553920,0.21,3969.2,3968.7,2.51971417]
[1760882554414,0.21,3969.2,3968.8,0.4404]
[1760882554618,0.21,3969.5,3969.1,0.2165]
[1760882557585,0.1256,3969.3,3969.2,2.51939937]
[1760882557783,0.1256,3969.3,3969.2,2.99179937]
[1760882558314,0.21,3969.7,3969.6,2.5191455]
[1760882558615,0.1256,3970.0,3969.3,0.4724]
[1760882558779,0.1256,3970.0,3969.9,2.51895513]
[1760882558979,0.1256,3970.0,3969.9,2.99135513]
[1760882559591,0.1256,3970.2,3970.1,2.51882824]
[1760882559813,0.1256,3970.2,3970.1,3.22402824]
[1760882560462,0.1256,3970.2,3968.0,0.2328]
[1760882560463,0.6336,3970.1,3968.0,0.2328]
[1760882560728,3.6892,3970.2,3966.8,0.2279]
[1760882560729,1.728,3967.7,3966.8,0.2279]
[1760882561028,0.6336,3968.0,3966.3,0.4724]
[1760882561029,1.728,3967.5,3966.5,0.2279]
[1760882561186,0.21,3967.6,3966.5,0.2279]
[1760882561501,2.737,3967.5,3966.8,2.52089436]
[1760882561909,0.21,3967.6,3966.9,2.52085488]
[1760882562282,0.21,3967.6,3966.5,0.2279]
[1760882562514,0.21,3967.6,3966.9,2.52084257]
[1760882562725,0.21,3967.6,3966.7,2.52098721]
[1760882562934,2.947,3967.8,3967.0,0.4724]
[1760882563138,2.947,3967.8,3967.1,0.2328]
[1760882563501,0.21,3967.8,3967.5,2.52046891]
[1760882563808,0.21,3967.8,3967.6,0.4724]
[1760882564004,1.938,3968.2,3967.6,0.4724]
[1760882564626,0.21,3968.2,3968.1,0.2328]
[1760882565116,0.21,3968.2,3967.6,3.2054]
[1760882565330,0.21,3968.2,3967.6,0.4724]
[1760882565632,6.305934,3968.8,3967.6,3.2054]
[1760882565783,2.07532,3968.6,3968.1,0.2328]
[1760882566289,0.21,3968.7,3968.2,0.4724]
[1760882566493,0.21,3968.7,3968.3,0.4724]
[1760882566800,0.21,3968.7,3968.2,2.52001893]
[1760882567006,0.21,3968.7,3968.1,0.2328]
[1760882567317,1.9506,3968.9,3968.1,2.75283444]
[1760882567517,0.21,3969.0,3968.1,0.2328]
[1760882567725,0.21,3969.0,3968.3,2.51992674]
[1760882567901,0.21,3969.0,3968.1,0.2328]
[1760882567902,0.21,3969.0,3968.4,2.51990192]
[1760882568300,0.21,3969.0,3968.1,2.75289146]
[1760882568619,0.21,3969.0,3968.1,0.2328]
[1760882568818,0.21,3969.0,3968.1,2.75286734]
[1760882569019,0.21,3969.0,3968.2,2.52003041]
[1760882569225,1.9511,3968.9,3967.3,2.52054637]
[1760882569427,2.1611,3968.9,3967.5,3.2044]
[1760882569609,1.728,3968.7,3967.5,0.4724]
[1760882569924,8.565754,3968.8,3967.5,0.4724]
[1760882569925,2.51984787,3968.5,3967.5,0.4724]
[1760882570125,0.21,3968.5,3967.5,0.4724]
[1760882570423,2.72987146,3968.5,3967.6,2.52038906]
[1760882570731,0.1256,3968.2,3967.5,0.1256]
[1760882570891,0.1256,3968.2,3967.3,2.52054612]
[1760882570892,0.1256,3967.8,3967.3,2.52054612]
[1760882571093,0.1256,3967.8,3967.1,2.8790911]
[1760882571495,0.1256,3967.8,3967.2,2.52066181]
[1760882571717,0.1256,3967.8,3967.1,0.3584]
[1760882572740,0.1256,3967.8,3967.1,2.87912884]
[1760882572889,0.1256,3967.8,3967.1,3.0824]
[1760882573094,0.1256,3967.8,3967.1,3.0814]
[1760882573297,0.1256,3967.8,3967.6,2.52036425]
[1760882573542,0.1256,3967.8,3967.7,2.52035184]
[1760882573741,0.1256,3967.8,3967.6,2.52040983]
[1760882573952,0.1256,3967.8,3967.7,2.52035184]
[1760882574234,0.21,3968.2,3967.8,2.52025893]
[1760882574432,0.1256,3968.0,3967.9,2.5202248]
[1760882574602,0.1256,3968.0,3967.9,2.9926248]
[1760882575317,0.21,3968.2,3968.1,2.52009777]
[1760882575546,0.1256,3968.3,3968.2,2.52003427]
[1760882575915,0.21,3968.9,3968.2,0.49760034]
[1760882576146,0.21,3968.9,3968.8,2.51965329]
[1760882576444,0.1256,3969.0,3968.7,2.51966562]
[1760882576616,0.1256,3969.0,3968.8,2.51963603]
[1760882576818,0.1256,3969.0,3968.9,2.99198981]
[1760882577018,0.1256,3969.3,3968.9,0.4724]
[1760882577248,0.1256,3969.3,3968.9,2.99197364]
[1760882577551,0.1256,3969.3,3969.1,2.51946222]
[1760882577748,0.1256,3969.3,3969.2,2.51939937]
[1760882578643,0.1256,3969.3,3969.1,2.75225909]
[1760882578852,0.1256,3969.3,3969.2,2.51939937]
[1760882579057,0.1256,3969.3,3969.1,2.51945909]
[1760882579548,0.1256,3969.3,3968.9,2.51958981]
[1760882579749,0.1256,3969.3,3969.0,2.51951663]
[1760882580047,0.1256,3969.3,3968.8,2.51963731]
[1760882580249,0.21,3969.4,3967.8,1.728]
[1760882580452,0.21,3969.4,3968.9,2.51958531]
[1760882580453,0.1256,3969.0,3968.9,2.51958531]
[1760882580749,0.1256,3969.0,3968.6,2.5197175]
[1760882580923,0.1256,3969.0,3968.4,2.8386]
[1760882581118,0.1256,3969.0,3968.5,2.51984376]
[1760882581866,0.001,3969.1,3968.2,2.51997958]
[1760882581867,0.1256,3968.5,3968.2,2.51997958]
[1760882582031,0.1256,3968.5,3968.1,0.2328]
[1760882582655,0.3356,3968.5,3968.3,2.51997076]
[1760882582867,0.3356,3968.5,3968.2,0.4724]
[1760882582868,0.3356,3968.5,3968.4,2.51990726]
[1760882583016,0.21,3968.5,3968.4,2.99230726]
[1760882583217,0.21,3968.5,3968.4,3.11790726]
[1760882584960,0.21,3968.5,3968.4,5.82990726]
[1760882586441,0.21,3968.5,3968.4,2.64550726]
[1760882586642,0.21,3968.5,3968.4,5.35450726]
[1760882586871,0.21,3968.5,3968.4,5.79700726]
[1760882587864,0.001,3969.1,3968.9,2.51958981]
[1760882587865,0.21,3969.0,3968.9,2.51958981]
[1760882588069,0.21,3969.0,3968.4,0.1256]
[1760882588373,0.1256,3968.7,3968.6,2.51977133]
[1760882588567,0.3356,3968.7,3968.6,2.51977133]
[1760882588744,0.3356,3968.7,3968.5,2.51983274]
[1760882588940,0.3356,3968.7,3968.6,2.51978027]
[1760882589137,0.5995,3968.7,3968.0,0.1256]
[1760882589454,0.1256,3968.4,3968.2,2.52002519]
[1760882589641,0.21,3968.3,3968.0,2.52010485]
[1760882589844,0.21,3968.3,3967.7,2.64593999]
[1760882590045,0.21,3968.3,3967.1,2.75547934]
[1760882590046,0.2294,3967.8,3967.1,0.2348]
[1760882590240,0.355,3967.8,3967.2,5.22666948]
[1760882590436,0.1256,3967.8,3967.4,2.52053667]
[1760882590650,0.21,3968.3,3968.1,2.52005203]
[1760882591082,0.21,3968.3,3968.2,2.52003427]
[1760882591583,0.21,3968.3,3968.2,2.96373427]
[1760882591884,0.21,3968.5,3968.4,2.51990726]
[1760882592086,0.21,3968.5,3968.4,7.07950726]
[1760882592949,0.21,3968.5,3968.2,2.64559045]
[1760882593151,0.3356,3968.5,3968.2,2.51999045]
[1760882593588,0.3356,3968.5,3968.1,2.52004465]
[1760882593881,0.3356,3968.5,3968.2,2.52003315]
[1760882594259,0.3356,3968.5,3967.1,0.002]
[1760882594260,0.6336,3968.3,3967.1,0.002]
[1760882594489,4.682436,3968.1,3967.1,0.002]
[1760882594786,2.707,3968.0,3967.1,0.002]
[1760882595090,7.26767948,3967.2,3967.1,0.002]
[1760882595291,8.45726248,3967.2,3967.1,0.002]
[1760882595454,2.52092366,3966.8,3966.1,0.81683789]
[1760882595659,20.95422989,3966.4,3966.1,0.81683789]
[1760882595854,3.15490502,3966.2,3966.1,1e-08]
[1760882596068,3.15490502,3966.2,3965.6,0.002]
[1760882596069,4.24962291,3965.7,3965.6,0.002]
[1760882596386,23.80054991,3965.7,3965.6,0.002]
[1760882596563,24.06814991,3965.7,3965.6,0.002]
[1760882596768,4.264806,3965.2,3964.2,2.47456586]
[1760882596980,2.52188777,3965.3,3964.0,0.2141]
[1760882596981,0.21,3965.1,3964.3,2.52250367]
[1760882597178,0.21,3965.0,3964.0,0.2141]
[1760882597474,0.6336,3966.1,3964.0,0.2141]
[1760882597475,0.21,3965.5,3965.4,2.52181368]
[1760882597661,0.21,3966.5,3966.2,2.52129942]
[1760882597862,2.52026136,3967.9,3965.3,0.2141]
[1760882597863,0.21,3966.4,3966.3,2.96491666]
[1760882598068,0.21,3967.4,3966.4,2.52117789]
[1760882598273,0.21,3967.4,3967.1,0.002]
[1760882598480,0.6469,3968.0,3967.1,2.52270899]
[1760882598659,11.34375,3967.9,3967.1,0.002]
[1760882598857,4.252777,3967.9,3967.1,0.002]
[1760882599090,2.52029628,3967.8,3967.1,0.002]
[1760882599287,3.284529,3967.7,3967.1,0.002]
[1760882599490,1.728,3967.9,3967.1,0.002]
[1760882599789,0.6469,3968.0,3967.1,0.002]
[1760882599993,2.52022902,3967.9,3967.1,0.002]
[1760882600306,1.728,3967.7,3967.1,0.002]
[1760882600508,1.728,3967.5,3967.1,0.002]
[1760882600666,7.168866,3967.2,3967.1,0.002]
[1760882601063,8.227726,3967.2,3967.1,0.002]
[1760882601264,1.728,3967.3,3967.1,0.002]
[1760882601459,1.728,3967.6,3967.1,0.002]
[1760882601664,0.4352,3968.3,3967.1,0.2161]
[1760882601873,0.27131887,3968.7,3967.1,0.2161]
[1760882601874,0.4358,3968.7,3967.1,0.2161]
[1760882602073,2.95558005,3968.7,3967.7,2.52033622]
[1760882602275,24.591773,3968.3,3967.5,2.52046963]
[1760882602596,0.21,3968.2,3967.1,0.2161]
[1760882602797,0.21,3968.2,3967.5,2.52047158]
[1760882603004,0.21,3968.2,3967.6,2.5204136]
[1760882603201,0.21,3968.3,3968.0,2.52015073]
[1760882603496,0.21,3968.3,3967.1,0.2161]
[1760882603497,0.21,3968.4,3968.1,0.2141]
[1760882604098,0.21,3968.4,3967.7,0.4437]
[1760882604099,0.21,3968.4,3967.8,2.52022744]
[1760882604308,0.21,3968.4,3967.7,0.2141]
[1760882604309,0.1256,3968.0,3967.7,0.2141]
[1760882604496,4.898174,3968.2,3967.1,5.89151834]
[1760882604683,3.306004,3968.2,3967.2,0.02520669]
[1760882604999,1.938,3968.4,3967.5,2.52044061]
[1760882605298,2.52084395,3968.5,3967.4,0.4437]
[1760882605299,0.21,3968.1,3967.4,0.4437]
[1760882605468,0.21,3968.1,3967.9,2.52020946]
[1760882605889,0.21,3968.1,3968.0,2.52016129]
[1760882606208,0.21,3968.1,3967.4,0.4437]
[1760882606410,0.21,3968.1,3967.8,2.5202803]
[1760882606592,0.21,3968.1,3967.4,0.4437]
[1760882606918,0.21,3968.1,3967.7,2.52035162]
[1760882607123,0.21,3968.1,3967.1,2.73678445]
[1760882607323,0.21,3968.1,3967.2,2.5206563]
[1760882607497,0.21,3968.1,3967.4,2.52048409]
[1760882607700,0.21,3968.1,3967.4,2.52051226]
[1760882607889,0.21,3968.1,3967.8,2.52026479]
[1760882608393,0.21,3968.4,3967.4,2.709]
[1760882608593,0.21,3968.4,3967.8,2.52027217]
[1760882608793,0.21,3968.4,3967.1,0.2161]
[1760882608794,0.21,3968.4,3967.3,5.22860595]
[1760882609093,0.21,3968.4,3967.5,0.4437]
[1760882609740,0.001,3968.5,3968.3,2.73407076]
[1760882609891,0.001,3969.3,3968.3,2.73407076]
[1760882609892,0.001,3969.9,3969.0,2.51952632]
[1760882610094,0.001,3969.9,3969.4,4.46137243]
[1760882610302,0.001,3969.9,3969.4,5.09497243]
[1760882610500,0.001,3969.9,3969.8,2.51901859]
[1760882610701,0.001,3969.9,3969.8,5.25220877]
[1760882611027,0.001,3969.9,3969.8,6.30431859]
[1760882611228,0.001,3969.9,3969.8,3.59631859]
[1760882611391,0.001,3969.9,3969.8,4.69071859]
[1760882611591,0.001,3969.9,3969.8,1.728]
[1760882611812,0.001,3969.9,3969.4,3.17705262]
[1760882611813,0.001,3969.9,3969.5,2.51920896]
[1760882611990,0.001,3969.9,3969.0,0.2141]
[1760882612190,0.001,3969.9,3969.1,2.708]
[1760882612390,0.001,3969.9,3969.2,0.02519399]
[1760882612611,0.001,3969.9,3969.0,0.6578]
[1760882612812,7.55898089,3969.7,3968.0,0.2141]
[1760882613021,4.57367,3969.7,3968.0,0.2141]
[1760882613223,2.51925932,3969.5,3968.0,0.2141]
[1760882613425,2.51925932,3969.5,3968.5,2.51984376]
[1760882614125,0.3287,3969.4,3968.0,0.2141]
[1760882614304,3.30944,3969.5,3968.6,2.51976982]
[1760882614500,3.30944,3969.5,3968.6,2.51978027]
[1760882614725,3.30944,3969.5,3968.5,2.709]
[1760882614726,2.344418,3969.5,3968.5,2.709]
[1760882614932,0.1256,3969.2,3968.6,0.1256]
[1760882615096,0.1256,3969.2,3968.9,2.51958142]
[1760882615736,0.1256,3969.2,3968.6,0.1256]
[1760882616036,0.1256,3969.2,3968.9,2.51952949]
[1760882616195,0.1256,3969.2,3968.8,2.51960878]
[1760882616535,0.1256,3969.2,3965.7,3.85]
[1760882616536,3.500402,3968.0,3967.1,0.002]
[1760882616739,0.2273,3968.7,3967.1,0.002]
[1760882616740,5.302795,3968.5,3967.1,0.002]
[1760882617025,1.728,3967.7,3967.1,0.002]
[1760882617230,5.576712,3967.6,3967.1,0.002]
[1760882617523,3.30944,3967.6,3967.1,0.002]
[1760882618048,0.0611,3967.9,3967.1,0.002]
[1760882618326,1.728,3968.3,3967.1,0.2161]
[1760882618530,0.3866,3968.5,3967.1,0.2161]
[1760882618718,0.2273,3968.7,3967.2,0.4572]
[1760882618917,0.2273,3968.7,3968.2,2.52002785]
[1760882619115,0.2351,3969.0,3967.1,0.2161]
[1760882619116,0.2351,3969.0,3968.1,5.44118882]
[1760882619343,0.2351,3969.3,3968.2,2.707]
[1760882619695,0.2351,3969.3,3968.1,0.2141]
[1760882619696,6.940667,3969.1,3968.3,2.707]
[1760882619893,2.51952858,3969.0,3968.3,2.707]
[1760882620202,0.2259,3968.9,3968.2,5.22702126]
[1760882620704,0.1545,3969.2,3968.2,5.22702126]
[1760882620705,0.1545,3969.2,3968.4,2.51990291]
[1760882621103,1.9631,3969.3,3968.5,2.51983092]
[1760882621329,2.7544433,3969.3,3968.4,2.51990098]
[1760882621630,0.2351,3969.3,3968.2,2.707]
[1760882621813,0.2351,3969.3,3968.6,2.51978015]
[1760882622328,0.2351,3969.3,3968.3,2.51997076]
[1760882622642,2.51916065,3969.6,3968.4,2.707]
[1760882622942,2.51916065,3969.6,3968.7,2.519697]
[1760882623237,6.252755,3969.6,3968.2,0.4572]
[1760882623437,6.252755,3969.6,3963.9,20.38256454]
[1760882623438,2.51971813,3968.7,3967.7,2.52034951]
[1760882623641,0.2252,3968.6,3967.8,2.5202762]
[1760882623841,0.2252,3968.6,3967.6,5.22735856]
[1760882624009,0.2252,3968.6,3967.6,2.707]
[1760882624210,2.51984376,3968.5,3967.6,2.707]
[1760882624427,2.74503673,3968.6,3967.6,5.22740747]
[1760882624628,0.2252,3968.6,3967.7,2.52035184]
[1760882624958,2.74504319,3968.6,3967.6,5.22739825]
[1760882625116,0.2252,3968.6,3967.6,2.707]
[1760882625542,2.74498127,3968.6,3967.7,2.52035184]
[1760882625850,1.728,3969.3,3967.6,3.1642]
[1760882626053,2.8531,3969.4,3967.6,2.707]
[1760882626214,2.707,3969.4,3968.2,2.51998553]
[1760882626419,7.384635,3969.3,3968.1,2.52003651]
[1760882626640,0.2342,3968.2,3967.7,1.728]
[1760882626827,0.2342,3968.2,3967.1,0.002]
[1760882626828,2.52066948,3967.2,3967.1,0.002]
[1760882627147,1.728,3967.2,3967.1,0.002]
[1760882627450,2.715,3967.4,3967.1,0.002]
[1760882627656,2.714,3967.7,3967.1,0.002]
[1760882627964,2.52063447,3967.3,3967.1,0.002]
[1760882628141,2.52066948,3967.2,3967.1,0.002]
[1760882628326,2.714,3967.7,3967.1,0.002]
[1760882628543,2.52041717,3967.6,3967.1,0.002]
[1760882629115,2.714,3967.7,3967.1,0.002]
[1760882629649,2.52042051,3967.6,3967.1,0.002]
[1760882629846,0.147,3968.1,3967.1,0.002]
[1760882630048,0.1256,3967.3,3967.1,0.002]
[1760882630256,0.1256,3967.3,3967.1,2.73682663]
[1760882630437,0.1256,3967.3,3967.2,0.4572]
[1760882630750,0.1256,3967.3,3967.1,2.73677265]
[1760882630967,0.1256,3967.3,3967.1,0.2161]
[1760882631167,7.52336548,3967.2,3967.1,0.002]
[1760882631314,11.26627748,3967.2,3967.1,0.002]
[1760882631520,10.70610248,3967.2,3967.1,0.002]
[1760882632257,18.20362548,3967.2,3967.1,0.002]
[1760882632462,11.59786248,3967.2,3967.1,0.002]
[1760882632833,4.39566948,3967.2,3967.1,0.002]
[1760882633239,10.67772548,3967.2,3967.1,0.002]
[1760882633827,11.31132548,3967.2,3967.1,0.002]
[1760882634023,11.92397774,3967.2,3967.1,0.002]
[1760882634262,12.40522248,3967.2,3967.1,0.002]
[1760882634432,13.03882248,3967.2,3967.1,0.002]
[1760882634765,12.09458148,3967.2,3967.1,0.002]
[1760882635063,8.65884148,3967.2,3967.1,0.002]
[1760882635251,14.66461848,3967.2,3967.1,0.002]
[1760882635451,13.53526348,3967.2,3967.1,0.002]
[1760882635758,4.39566948,3967.2,3967.1,0.002]
[1760882635962,6.95866948,3967.2,3967.1,0.002]
[1760882636139,7.10566948,3967.2,3967.1,0.002]
[1760882636460,10.47929448,3967.2,3967.1,0.002]
[1760882636754,25.86950048,3967.2,3967.1,0.002]
[1760882636925,22.79727048,3967.2,3967.1,0.002]
[1760882637126,16.87386848,3967.2,3967.1,0.002]
[1760882637430,14.46546748,3967.2,3967.1,0.002]
[1760882637931,11.32537248,3967.2,3967.1,0.002]
[1760882638456,10.10035748,3967.2,3967.1,0.002]
[1760882638850,9.11430048,3967.2,3967.1,0.002]
[1760882639166,6.95866948,3967.2,3967.1,0.002]
[1760882639531,2.52055017,3967.4,3967.1,0.2161]
[1760882639768,2.52066948,3967.2,3967.1,0.002]
[1760882640131,20.81176048,3967.2,3967.1,0.002]
[1760882640331,19.54565948,3967.2,3967.1,0.002]
[1760882640865,19.81510248,3967.2,3967.1,0.002]
[1760882641070,19.31054248,3967.2,3967.1,0.002]
[1760882641766,20.75599848,3967.2,3967.1,0.002]
[1760882641938,22.01854248,3967.2,3967.1,0.002]
[1760882642335,23.41179474,3967.2,3967.1,0.002]
[1760882643073,27.12766274,3967.2,3967.1,0.002]
[1760882643969,38.34992174,3967.2,3967.1,0.002]
[1760882644168,36.32477774,3967.2,3967.1,0.002]
[1760882644469,33.79072374,3967.2,3967.1,0.002]
[1760882644674,24.38139974,3967.2,3967.1,0.002]
[1760882644872,7.57865948,3967.2,3967.1,0.002]
[1760882645050,10.12255048,3967.2,3967.1,0.002]
[1760882645968,5.22866948,3967.2,3967.1,0.002]
[1760882646274,9.57116448,3967.2,3967.1,0.002]
[1760882646584,10.35176448,3967.2,3967.1,0.002]
[1760882646748,10.57142274,3967.2,3967.1,0.002]
[1760882646972,15.23352674,3967.2,3967.1,0.002]
[1760882647349,15.23352674,3967.2,3966.7,0.002]
[1760882647350,3.15452366,3966.8,3966.7,1e-08]
[1760882647581,37.59052366,3966.8,3966.7,1e-08]
[1760882647808,38.35097592,3966.8,3966.7,1e-08]
[1760882647949,33.35135092,3966.8,3966.7,1e-08]
[1760882648171,33.74814492,3966.8,3966.7,1e-08]
[1760882648355,34.16311061,3966.8,3966.7,1e-08]
[1760882649091,38.80988784,3966.8,3966.7,1e-08]
[1760882649995,8.80988784,3966.8,3966.7,1e-08]
[1760882650171,38.80988784,3966.8,3966.7,1e-08]
[1760882650556,35.68692215,3966.8,3966.7,1e-08]
[1760882650891,30.85970315,3966.8,3966.7,1e-08]
[1760882651088,37.76132215,3966.8,3966.7,1e-08]
[1760882651389,38.80988784,3966.8,3966.7,1e-08]
[1760882651590,38.39492215,3966.8,3966.7,1e-08]
[1760882651893,31.01552615,3966.8,3966.7,1e-08]
[1760882652185,16.77172366,3966.8,3966.7,1e-08]
[1760882652389,21.20772366,3966.8,3966.7,1e-08]
[1760882652686,21.98912366,3966.8,3966.7,1e-08]
[1760882652884,21.84132366,3966.8,3966.7,1e-08]
[1760882653087,29.92991566,3966.8,3966.7,1e-08]
[1760882653293,30.51084396,3966.8,3966.7,1e-08]
[1760882653592,30.92580965,3966.8,3966.7,1e-08]
[1760882654087,38.58641765,3966.8,3966.7,1e-08]
[1760882654710,29.31728296,3966.8,3966.7,1e-08]
[1760882655085,5.31565196,3966.8,3966.7,1e-08]
[1760882655289,32.40810796,3966.8,3966.7,1e-08]
[1760882655709,32.26030796,3966.8,3966.7,1e-08]
[1760882655918,16.55650266,3966.8,3966.7,1e-08]
[1760882656124,5.86252366,3966.8,3966.7,1e-08]
[1760882656427,28.30295066,3966.8,3966.7,1e-08]
[1760882656651,30.03095066,3966.8,3966.7,1e-08]
[1760882657298,33.74323566,3966.8,3966.7,1e-08]
[1760882657499,34.17636396,3966.8,3966.7,1e-08]
[1760882657708,34.02216889,3966.4,3966.3,1e-08]
[1760882657892,36.10214489,3966.4,3966.3,1e-08]
[1760882658087,36.53527319,3966.4,3966.3,1e-08]
[1760882658339,8.17250619,3966.4,3966.3,1e-08]
[1760882658488,38.02390619,3966.4,3966.3,1e-08]
[1760882658695,20.26229969,3966.4,3966.3,1e-08]
[1760882658917,20.82586538,3966.4,3966.3,1e-08]
[1760882659121,20.41089969,3966.4,3966.3,1e-08]
[1760882659294,34.34870769,3966.4,3966.3,1e-08]
[1760882659489,27.74170069,3966.4,3966.3,1e-08]
[1760882660125,27.89030069,3966.4,3966.3,1e-08]
[1760882660431,38.21645069,3966.4,3966.3,1e-08]
[1760882660803,35.97154869,3966.4,3966.3,1e-08]
[1760882661009,36.12014869,3966.4,3966.3,1e-08]
[1760882661405,38.21645069,3966.4,3966.3,1e-08]
[1760882662234,38.63141638,3966.4,3966.3,1e-08]
[1760882663320,8.63141638,3966.4,3966.3,1e-08]
[1760882663518,38.63141638,3966.4,3966.3,1e-08]
[1760882664414,8.63141638,3966.4,3966.3,1e-08]
[1760882664734,38.63141638,3966.4,3966.3,1e-08]
[1760882665527,38.58747188,3966.4,3966.3,1e-08]
[1760882665759,41.23647188,3966.4,3966.3,1e-08]
[1760882666419,5.87947188,3966.4,3966.3,1e-08]
[1760882666619,35.87947188,3966.4,3966.3,1e-08]
[1760882666939,32.95430619,3966.4,3966.3,1e-08]
[1760882667103,35.66330619,3966.4,3966.3,1e-08]
[1760882667308,37.95487188,3966.4,3966.3,1e-08]
[1760882667528,38.43987188,3966.4,3966.3,1e-08]
[1760882667909,38.02490619,3966.4,3966.3,1e-08]
[1760882669206,38.17350619,3966.4,3966.3,1e-08]
[1760882669411,38.02490619,3966.4,3966.3,1e-08]
[1760882669939,35.12228419,3966.4,3966.3,1e-08]
[1760882670147,2.5218508,3965.4,3965.1,0.6866]
[1760882670454,9.84584088,3965.2,3965.1,0.2233]
[1760882670617,12.20121988,3965.2,3965.1,0.2233]
[1760882670926,9.75831388,3965.2,3965.1,0.6866]
[1760882671748,10.36957188,3965.2,3965.1,0.6866]
[1760882671933,10.36853888,3965.2,3965.1,0.6866]
[1760882672644,9.71670788,3965.2,3965.1,0.6866]
[1760882672837,15.71750588,3965.2,3965.1,0.6866]
[1760882673036,10.92010688,3965.2,3965.1,0.6866]
[1760882673242,9.67624588,3965.2,3965.1,0.6866]
[1760882673434,9.25023788,3965.2,3965.1,0.6866]
[1760882673633,8.68383488,3965.2,3965.1,0.6866]
[1760882673947,9.46323088,3965.2,3965.1,0.6866]
[1760882674930,13.38952488,3965.2,3965.1,0.6866]
[1760882675331,12.71561388,3965.2,3965.1,0.6866]
[1760882675546,8.29647088,3965.2,3965.1,0.6866]
[1760882675747,4.24994088,3965.2,3965.1,0.6866]
[1760882675951,7.61968288,3965.2,3965.1,0.6866]
[1760882676132,10.17825188,3965.2,3965.1,0.6866]
[1760882676459,9.91441688,3965.2,3965.1,0.6866]
[1760882677251,12.48570388,3965.2,3965.1,0.6866]
[1760882677772,11.20849288,3965.2,3965.1,0.6866]
[1760882678150,2.708,3965.2,3965.1,0.6866]
[1760882678359,0.001,3966.4,3965.1,0.6866]
[1760882678678,0.1256,3965.4,3965.2,0.4544]
[1760882679554,0.4331283,3966.3,3965.1,0.2233]
[1760882679555,0.001,3966.4,3965.3,0.4544]
[1760882679754,2.709,3966.4,3965.3,0.4544]
[1760882680055,2.709,3966.4,3965.6,2.52168278]
[1760882680254,2.709,3966.4,3965.7,0.4544]
[1760882680454,2.709,3966.4,3965.7,2.97601571]
[1760882680669,0.001,3966.4,3965.9,2.52145349]
[1760882680869,0.001,3966.4,3966.1,2.52134458]
[1760882681177,0.001,3966.4,3966.3,2.52124145]
[1760882681766,0.001,3966.4,3966.3,2.97564145]
[1760882682285,0.001,3966.4,3966.3,5.33724145]
[1760882684159,0.001,3966.4,3966.3,8.04424145]
[1760882684594,1e-08,3967.2,3967.1,4.88233302]
[1760882684794,1e-08,3967.2,3967.1,5.03434035]
[1760882684997,1e-08,3967.2,3967.1,5.48874035]
[1760882685164,1e-08,3967.2,3967.1,5.46353302]
[1760882685810,1e-08,3967.2,3967.1,8.17053302]
[1760882686365,1e-08,3967.2,3967.1,5.46353302]
[1760882686568,1e-08,3967.2,3967.1,8.16953302]
[1760882688983,1e-08,3967.2,3967.1,5.46353302]
[1760882689299,1e-08,3967.2,3967.1,8.16953302]
[1760882689680,1e-08,3967.2,3967.1,8.29513302]
[1760882690989,1e-08,3967.2,3967.1,0.1268]
[1760882691189,1e-08,3967.2,3966.7,0.4544]
[1760882691502,1e-08,3967.2,3967.1,2.52073302]
[1760882691681,1e-08,3967.2,3966.7,0.4544]
[1760882691682,1e-08,3967.2,3967.0,2.52079407]
[1760882692101,1e-08,3967.2,3967.1,2.52073302]
[1760882692507,0.42880001,3967.2,3966.0,2.64817492]
[1760882692718,0.42880001,3967.2,3965.6,0.1268]
[1760882692719,0.5977,3967.1,3965.6,0.1268]
[1760882692920,1e-08,3967.2,3966.6,2.52103313]
[1760882693506,1e-08,3967.2,3966.3,0.4544]
[1760882693931,1e-08,3967.2,3966.8,2.52086926]